bitfinex-derivatives/quotes_BTCF0:USTF0_20260104
["timestamp","ask_amount","ask_price","bid_price","bid_amount"]
[1767553579793,0.010987,91051.0,91039.0,0.03]
[1767553579994,0.09263435,91055.0,91039.0,0.03]
[1767553580183,0.010987,91055.0,91039.0,0.03]
[1767553580591,0.104346,91060.0,91044.0,0.10237035]
[1767553580989,0.09336,91060.0,91044.0,0.09025082]
[1767553581183,0.010986,91066.0,91050.0,0.10237035]
[1767553581389,0.09659193,91075.0,91050.0,0.10237035]
[1767553581390,0.010985,91070.0,91050.0,0.10237035]
[1767553581586,0.010985,91070.0,91051.0,0.01211953]
[1767553581896,0.0934,91071.0,91052.0,0.010987]
[1767553582188,0.010985,91070.0,91052.0,0.010987]
[1767553582393,0.010985,91070.0,91051.0,0.10237035]
[1767553582591,0.010985,91070.0,91052.0,0.01211953]
[1767553583098,0.0934,91071.0,91052.0,0.11335735]
[1767553583295,0.010985,91070.0,91052.0,0.11335735]
[1767553583680,0.0934,91071.0,91053.0,0.10237035]
[1767553583888,0.0934,91071.0,91049.0,0.0934]
[1767553583889,0.0934,91071.0,91056.0,0.010987]
[1767553584080,0.0934,91071.0,91057.0,0.10237035]
[1767553584286,0.010985,91070.0,91057.0,0.10237035]
[1767553584586,0.010986,91062.0,91053.0,0.0934]
[1767553584785,0.10362035,91066.0,91053.0,0.0934]
[1767553584987,0.10362035,91066.0,91049.0,0.010988]
[1767553585182,0.10362035,91066.0,91050.0,0.0934]
[1767553585392,0.0934,91071.0,91050.0,0.19577035]
[1767553585596,0.0934,91071.0,91054.0,0.01211953]
[1767553585788,0.0934,91078.0,91065.0,0.09025082]
[1767553585982,0.010984,91081.0,91066.0,0.10237035]
[1767553586292,0.0934,91084.0,91066.0,0.09025082]
[1767553586884,0.010984,91079.0,91061.0,0.02310553]
[1767553587784,0.010984,91082.0,91063.0,0.10123682]
[1767553588195,0.010984,91080.0,91063.0,0.10123682]
[1767553588392,0.010984,91080.0,91066.0,0.01211953]
[1767553588593,0.010983,91083.0,91070.0,0.10237035]
[1767553589095,0.010984,91081.0,91070.0,0.09025082]
[1767553589397,0.0934,91091.0,91071.0,0.10237035]
[1767553589597,0.010982,91094.0,91078.0,0.10237035]
[1767553589790,0.010982,91092.0,91078.0,0.10237035]
[1767553590795,0.010982,91094.0,91078.0,0.10237035]
[1767553591098,0.0934,91097.0,91083.0,0.01097531]
[1767553591293,0.0934,91097.0,91083.0,0.10379632]
[1767553592699,0.104382,91097.0,91083.0,0.10379632]
[1767553593197,0.0934,91097.0,91083.0,0.10379632]
[1767553593399,0.010981,91101.0,91084.0,0.010983]
[1767553593795,0.010982,91099.0,91083.0,0.10379632]
[1767553594099,0.010982,91099.0,91083.0,0.11477932]
[1767553594298,0.010982,91099.0,91084.0,0.01097531]
[1767553594800,0.010982,91097.0,91084.0,0.01097531]
[1767553596185,0.010981,91100.0,91084.0,0.01097531]
[1767553596789,0.02628569,91099.0,91084.0,0.01097531]
[1767553597103,0.02628569,91098.0,91081.0,0.104384]
[1767553597290,0.02628569,91097.0,91081.0,0.20639265]
[1767553597494,0.02628569,91096.0,91083.0,0.010983]
[1767553597702,0.010982,91099.0,91083.0,0.010983]
[1767553597897,0.0260193,91098.0,91083.0,0.010983]
[1767553598107,0.02601928,91097.0,91083.0,0.010983]
[1767553598401,0.02601928,91096.0,91083.0,0.010983]
[1767553598699,0.010981,91102.0,91087.0,0.11299165]
[1767553598897,0.02602101,91101.0,91087.0,0.11299165]
[1767553599201,0.02602101,91100.0,91087.0,0.11299165]
[1767553599501,0.010981,91102.0,91087.0,0.10200865]
[1767553599502,0.02602101,91099.0,91087.0,0.10200865]
[1767553599703,0.02602101,91098.0,91087.0,0.10200865]
[1767553599999,0.02602101,91097.0,91087.0,0.10200865]
[1767553600190,0.010981,91102.0,91087.0,0.10200865]
[1767553600390,0.010982,91098.0,91087.0,0.10200865]
[1767553600586,0.010981,91101.0,91087.0,0.10200865]
[1767553600786,0.0260223,91100.0,91087.0,0.10200865]
[1767553600991,0.0260223,91099.0,91087.0,0.10200865]
[1767553601187,0.0260223,91098.0,91087.0,0.10200865]
[1767553601401,0.0260223,91097.0,91087.0,0.10200865]
[1767553601703,0.010981,91101.0,91087.0,0.10200865]
[1767553601892,0.02602262,91100.0,91087.0,0.10200865]
[1767553602094,0.02602262,91099.0,91087.0,0.10200865]
[1767553602295,0.02602262,91098.0,91087.0,0.10200865]
[1767553602602,0.02602262,91098.0,91087.0,0.09400865]
[1767553602795,0.02602262,91098.0,91087.0,0.10499165]
[1767553602997,0.010981,91102.0,91087.0,0.10499165]
[1767553603197,0.02602873,91101.0,91087.0,0.10499165]
[1767553603398,0.02602873,91100.0,91087.0,0.10499165]
[1767553603598,0.02602873,91099.0,91087.0,0.10499165]
[1767553603806,0.02602873,91098.0,91082.0,0.010984]
[1767553603994,0.0934,91105.0,91082.0,0.010984]
[1767553603995,0.009449,91104.0,91082.0,0.010984]
[1767553604196,0.0260299,91103.0,91082.0,0.10161022]
[1767553604397,0.0260299,91102.0,91084.0,0.10160922]
[1767553604597,0.0260299,91101.0,91084.0,0.11299165]
[1767553604891,0.0260299,91100.0,91087.0,0.010983]
[1767553605090,0.0260299,91100.0,91086.0,0.01138243]
[1767553605904,0.010982,91096.0,91086.0,0.01138243]
[1767553606599,0.0934,91105.0,91087.0,0.01138243]
[1767553606801,0.010981,91101.0,91087.0,0.01138243]
[1767553607710,0.010981,91103.0,91089.0,0.01138243]
[1767553608009,0.010981,91101.0,91088.0,0.10200865]
[1767553608208,0.0934,91105.0,91088.0,0.10200865]
[1767553608404,0.03701239,91104.0,91088.0,0.11299165]
[1767553608704,0.02603139,91103.0,91091.0,0.01138243]
[1767553608906,0.104381,91105.0,91090.0,0.09062622]
[1767553609112,0.02603169,91104.0,91090.0,0.09062622]
[1767553609307,0.02603169,91103.0,91090.0,0.09062622]
[1767553609498,0.104381,91105.0,91090.0,0.09062622]
[1767553609704,0.02603765,91104.0,91090.0,0.09062622]
[1767553610007,0.0934,91105.0,91090.0,0.09062622]
[1767553610407,0.02604723,91104.0,91090.0,0.10200865]
[1767553610608,0.0934,91105.0,91092.0,0.10200865]
[1767553610810,0.02604726,91104.0,91093.0,0.01138243]
[1767553611116,0.104381,91105.0,91092.0,0.09062622]
[1767553611314,0.02604733,91104.0,91092.0,0.09062622]
[1767553611614,0.02604733,91104.0,91089.0,0.01138243]
[1767553611615,0.02604733,91103.0,91089.0,0.01138243]
[1767553611809,0.104381,91105.0,91089.0,0.10200865]
[1767553612114,0.104381,91105.0,91081.0,0.0934]
[1767553612115,0.02605619,91104.0,91091.0,0.01138243]
[1767553612317,0.02605619,91103.0,91091.0,0.01138243]
[1767553612608,0.104381,91105.0,91091.0,0.01138243]
[1767553612914,0.0370438,91104.0,91090.0,0.010983]
[1767553613215,0.0260628,91103.0,91090.0,0.010983]
[1767553613512,0.0260628,91102.0,91090.0,0.010983]
[1767553613711,0.010981,91104.0,91090.0,0.010983]
[1767553613906,0.02607125,91103.0,91090.0,0.010983]
[1767553614108,0.02607125,91102.0,91090.0,0.010983]
[1767553614407,0.02607125,91101.0,91090.0,0.010983]
[1767553614609,0.010981,91104.0,91090.0,0.010983]
[1767553614810,0.0260806,91103.0,91090.0,0.010983]
[1767553615109,0.0260806,91102.0,91090.0,0.010983]
[1767553615307,0.0260806,91101.0,91090.0,0.010983]
[1767553615509,0.0260806,91100.0,91092.0,0.010982]
[1767553615709,0.0934,91105.0,91092.0,0.02236443]
[1767553615907,0.02609198,91104.0,91092.0,0.02236443]
[1767553616110,0.02609198,91103.0,91092.0,0.02236443]
[1767553616303,0.02609198,91102.0,91092.0,0.02236443]
[1767553616503,0.02609198,91101.0,91092.0,0.02236443]
[1767553616704,0.02609198,91100.0,91092.0,0.02236443]
[1767553616904,0.010981,91104.0,91092.0,0.010982]
[1767553617104,0.02609721,91103.0,91092.0,0.010982]
[1767553617315,0.02609721,91102.0,91092.0,0.010982]
[1767553617504,0.02609721,91101.0,91092.0,0.010982]
[1767553617704,0.02609721,91100.0,91092.0,0.010982]
[1767553617908,0.01098,91108.0,91096.0,0.01138243]
[1767553618107,0.00778924,91106.0,91093.0,0.010982]
[1767553618305,0.010981,91104.0,91091.0,0.010982]
[1767553618507,0.02611057,91103.0,91091.0,0.010982]
[1767553619303,0.03709157,91103.0,91091.0,0.010982]
[1767553619605,0.02611057,91102.0,91091.0,0.010982]
[1767553619805,0.02611057,91102.0,91088.0,0.010983]
[1767553620013,0.00768712,91098.0,91084.0,0.010983]
[1767553620207,0.01866912,91098.0,91084.0,0.010983]
[1767553620414,0.01866912,91098.0,91085.0,0.09336]
[1767553620621,0.00768712,91098.0,91078.0,0.01017878]
[1767553620817,0.010982,91094.0,91080.0,0.010984]
[1767553621009,0.010982,91099.0,91085.0,0.02116178]
[1767553621207,0.010981,91103.0,91089.0,0.010983]
[1767553621407,0.02613423,91102.0,91091.0,0.010982]
[1767553621604,0.02613423,91101.0,91092.0,0.01017878]
[1767553621809,0.010981,91104.0,91093.0,0.01017878]
[1767553622104,0.02613394,91103.0,91093.0,0.01017878]
[1767553622414,0.02613394,91102.0,91092.0,0.09146651]
[1767553622720,0.02613394,91101.0,91084.0,0.01017878]
[1767553623019,0.02613394,91100.0,91084.0,0.01017878]
[1767553623217,0.00740945,91103.0,91084.0,0.01017878]
[1767553623419,0.010981,91100.0,91084.0,0.01017878]
[1767553624310,0.00740945,91103.0,91084.0,0.01017878]
[1767553624511,0.010981,91101.0,91084.0,0.010983]
[1767553624716,0.02615056,91100.0,91084.0,0.010983]
[1767553625522,0.010982,91099.0,91084.0,0.010983]
[1767553625718,0.00719073,91100.0,91081.0,0.10245051]
[1767553625923,0.00719073,91096.0,91081.0,0.09336]
[1767553626221,0.010982,91093.0,91079.0,0.09336]
[1767553626920,0.00719073,91096.0,91079.0,0.09336]
[1767553627621,0.010982,91096.0,91079.0,0.104344]
[1767553627818,0.010982,91098.0,91082.0,0.01017878]
[1767553628129,0.18691965,91103.0,91082.0,0.02116178]
[1767553628130,0.19376185,91103.0,91082.0,0.02116178]
[1767553628319,0.02585563,91102.0,91084.0,0.010983]
[1767553628518,0.19376185,91103.0,91090.0,0.10615895]
[1767553628712,0.02585652,91102.0,91090.0,0.10615895]
[1767553628912,0.20474285,91103.0,91088.0,0.010983]
[1767553629219,0.02585728,91102.0,91088.0,0.010983]
[1767553629418,0.010981,91101.0,91084.0,0.010983]
[1767553629818,0.010982,91099.0,91084.0,0.040983]
[1767553632217,0.010981,91102.0,91084.0,0.04017878]
[1767553632423,0.02585974,91101.0,91087.0,0.01017878]
[1767553632622,0.010981,91102.0,91087.0,0.01017878]
[1767553632823,0.0258598,91101.0,91083.0,0.01017878]
[1767553633123,0.010982,91097.0,91083.0,0.01017878]
[1767553633630,0.010982,91096.0,91083.0,0.01017878]
[1767553634217,0.09970416,91103.0,91083.0,0.01017878]
[1767553634419,0.010982,91099.0,91083.0,0.01017878]
[1767553634929,0.010982,91099.0,91083.0,0.02116178]
[1767553636325,0.010982,91097.0,91083.0,0.02116178]
[1767553636522,0.010982,91095.0,91083.0,0.01017878]
[1767553639324,0.010982,91094.0,91083.0,0.01017878]
[1767553639527,0.010982,91094.0,91080.0,0.19762546]
[1767553639724,0.010982,91094.0,91080.0,0.12146651]
[1767553639927,0.010982,91096.0,91081.0,0.02116278]
[1767553640128,0.010982,91096.0,91082.0,0.01017878]
[1767553640731,0.10615895,91100.0,91082.0,0.01017878]
[1767553640928,0.010982,91092.0,91079.0,0.09336]
[1767553641126,0.010982,91092.0,91079.0,0.12336]
[1767553641323,0.00591175,91091.0,91069.0,0.1804294]
[1767553641517,0.00591175,91087.0,91069.0,0.12146651]
[1767553642027,0.010984,91080.0,91069.0,0.03]
[1767553642426,0.010984,91083.0,91069.0,0.03]
[1767553642626,0.010984,91083.0,91068.0,0.09336]
[1767553642627,0.010985,91073.0,91061.0,0.01017878]
[1767553642828,0.010985,91069.0,91062.0,0.09336]
[1767553643027,0.010986,91066.0,91054.0,0.09336]
[1767553643529,0.010985,91069.0,91054.0,0.12336]
[1767553644634,0.11590364,91071.0,91054.0,0.03]
[1767553644838,0.010986,91066.0,91051.0,0.09336]
[1767553645038,0.010986,91066.0,91051.0,0.12336]
[1767553645233,0.010986,91064.0,91051.0,0.12336]
[1767553645634,0.11590364,91061.0,91040.0,0.01017878]
[1767553645830,0.010987,91055.0,91041.0,0.09336]
[1767553646030,0.010987,91052.0,91041.0,0.12336]
[1767553646231,0.010987,91055.0,91041.0,0.12336]
[1767553646431,0.010987,91055.0,91041.0,0.13353878]
[1767553646940,0.010987,91058.0,91042.0,0.01017878]
[1767553647142,0.010987,91056.0,91043.0,0.01017878]
[1767553647436,0.010987,91054.0,91043.0,0.01017878]
[1767553647636,0.010987,91054.0,91042.0,0.09146651]
[1767553648231,0.010987,91057.0,91042.0,0.09146651]
[1767553648430,0.010987,91057.0,91042.0,0.10164529]
[1767553649338,0.010987,91055.0,91042.0,0.10164529]
[1767553649737,0.10615895,91060.0,91042.0,0.10164529]
[1767553650039,0.10615895,91060.0,91036.0,0.10357878]
[1767553650040,0.010988,91046.0,91036.0,0.10357878]
[1767553650340,0.010988,91046.0,91036.0,0.13357878]
[1767553650646,0.010988,91049.0,91037.0,0.10195128]
[1767553650837,0.00977305,91057.0,91038.0,0.01088602]
[1767553651038,0.010987,91053.0,91040.0,0.01088602]
[1767553651643,0.00977305,91061.0,91049.0,0.00219663]
[1767553651840,0.010987,91055.0,91049.0,0.00219663]
[1767553652945,0.10623853,91057.0,91049.0,6.3e-07]
[1767553653244,0.010987,91051.0,91049.0,6.3e-07]
[1767553653650,0.10740074,91051.0,91049.0,6.3e-07]
[1767553654143,0.010987,91054.0,91049.0,6.3e-07]
[1767553654353,0.010987,91052.0,91049.0,6.3e-07]
[1767553655246,0.010987,91052.0,91036.0,0.01122108]
[1767553655439,0.010987,91050.0,91036.0,0.04122108]
[1767553656643,0.00948549,91049.0,91036.0,0.03]
[1767553656834,0.010988,91045.0,91036.0,0.03]
[1767553658648,0.00965427,91048.0,91036.0,0.03]
[1767553659246,0.010988,91043.0,91036.0,0.03]
[1767553659445,0.010988,91047.0,91036.0,0.03]
[1767553660443,0.09987924,91049.0,91036.0,0.03]
[1767553660444,0.0093772,91048.0,91036.0,0.03]
[1767553660945,0.0203652,91048.0,91036.0,0.03]
[1767553661131,0.09987924,91041.0,91017.0,0.11079577]
[1767553661331,0.010988,91050.0,91032.0,0.11079577]
[1767553661535,0.0934,91050.0,91039.0,0.01122108]
[1767553661737,0.010988,91045.0,91035.0,0.01122108]
[1767553661938,0.010988,91048.0,91035.0,0.01122108]
[1767553662237,0.0934,91050.0,91035.0,0.01122108]
[1767553662538,0.0092698,91056.0,91037.0,0.01122108]
[1767553662539,0.010987,91054.0,91037.0,0.01122108]
[1767553662850,0.104387,91054.0,91037.0,0.01122108]
[1767553663141,0.11086724,91047.0,91025.0,0.01122108]
[1767553663350,0.0934,91054.0,91039.0,0.01122108]
[1767553663739,0.0934,91054.0,91038.0,0.09957469]
[1767553664042,0.010987,91051.0,91038.0,0.09957469]
[1767553664241,0.010987,91051.0,91035.0,0.01122108]
[1767553664439,0.104387,91054.0,91036.0,0.01122108]
[1767553664640,0.010987,91052.0,91036.0,0.01122108]
[1767553665040,0.010988,91050.0,91036.0,0.01122108]
[1767553665649,0.010988,91048.0,91035.0,0.09957469]
[1767553665843,0.010989,91041.0,91028.0,0.01122108]
[1767553666046,0.010988,91044.0,91029.0,0.01122108]
[1767553666249,0.010988,91044.0,91031.0,0.01122108]
[1767553666448,0.010988,91046.0,91031.0,0.01122108]
[1767553666644,0.010988,91049.0,91033.0,0.01122108]
[1767553666953,0.09987924,91053.0,91034.0,0.01122108]
[1767553667149,0.09987924,91053.0,91035.0,0.01122108]
[1767553667548,0.0934,91054.0,91040.0,0.01122108]
[1767553667940,0.010987,91053.0,91040.0,0.01122108]
[1767553668143,0.010987,91053.0,91039.0,0.09957469]
[1767553668546,0.00123814,91064.0,91048.0,0.09957469]
[1767553668746,0.010985,91067.0,91061.0,0.01122108]
[1767553668945,0.19327924,91083.0,91055.0,0.01122108]
[1767553668946,0.10207515,91079.0,91055.0,0.01122108]
[1767553669149,0.10207515,91079.0,91055.0,0.04122108]
[1767553669350,0.0263827,91078.0,91058.0,0.010986]
[1767553669545,0.10207515,91079.0,91059.0,0.11079577]
[1767553669750,0.50207515,91079.0,91059.0,0.11079577]
[1767553670252,0.010984,91078.0,91062.0,0.01122108]
[1767553671250,0.010985,91073.0,91061.0,0.09957469]
[1767553671655,0.010985,91073.0,91057.0,0.01122108]
[1767553671855,0.010985,91071.0,91057.0,0.01122108]
[1767553672161,0.010985,91070.0,91057.0,0.01122108]
[1767553672459,0.010985,91070.0,91055.0,0.09957469]
[1767553673967,0.010985,91073.0,91055.0,0.09957469]
[1767553674174,0.010985,91073.0,91056.0,0.01122108]
[1767553674970,0.010985,91073.0,91056.0,0.02220808]
[1767553675566,0.010985,91073.0,91056.0,0.01122108]
[1767553676076,0.010985,91071.0,91056.0,0.01122108]
[1767553676475,0.10625174,91070.0,91056.0,0.01122108]
[1767553676973,0.010985,91069.0,91056.0,0.01122108]
[1767553677967,0.00219591,91079.0,91067.0,0.09449057]
[1767553678172,0.104383,91090.0,91078.0,0.01081461]
[1767553678374,0.0934,91091.0,91078.0,0.01081461]
[1767553679067,0.0934,91091.0,91080.0,0.10530518]
[1767553679271,0.0934,91091.0,91080.0,0.09449057]
[1767553679467,0.0934,91091.0,91076.0,0.01081461]
[1767553679672,0.0934,91099.0,91084.0,0.010983]
[1767553679968,0.0934,91099.0,91084.0,0.01081461]
[1767553680176,0.0934,91099.0,91086.0,0.01120724]
[1767553680372,0.0934,91099.0,91082.0,0.01120724]
[1767553680670,0.0934,91099.0,91070.0,0.10625174]
[1767553680671,0.0114698,91092.0,91078.0,0.0934]
[1767553680874,0.0114698,91092.0,91078.0,0.1234]
[1767553681067,0.09510127,91093.0,91078.0,0.0934]
[1767553681369,0.0114698,91092.0,91076.0,0.010984]
[1767553681576,0.0114698,91090.0,91073.0,0.104385]
[1767553681774,0.0114698,91088.0,91075.0,0.010984]
[1767553682074,0.09510127,91089.0,91075.0,0.010984]
[1767553682666,0.010982,91093.0,91072.0,0.010985]
[1767553682866,0.09510127,91095.0,91072.0,0.010985]
[1767553682867,0.10657107,91090.0,91072.0,0.010985]
[1767553683069,0.010983,91088.0,91072.0,0.010985]
[1767553684372,0.10657107,91090.0,91074.0,0.010984]
[1767553684876,0.0934,91105.0,91092.0,0.01120724]
[1767553685274,0.0934,91105.0,91091.0,0.09666218]
[1767553685776,0.0934,91105.0,91088.0,0.01120724]
[1767553685976,0.0934,91105.0,91085.0,0.10786942]
[1767553686372,0.010981,91101.0,91084.0,0.010983]
[1767553686578,0.09510127,91103.0,91086.0,0.010983]
[1767553686579,0.01104098,91103.0,91086.0,0.010983]
[1767553686778,0.11712325,91102.0,91086.0,0.010983]
[1767553687180,0.11712325,91102.0,91077.0,0.09666218]
[1767553687181,0.010982,91093.0,91080.0,0.0934]
[1767553687578,0.010982,91093.0,91073.0,0.010985]
[1767553687579,0.01093335,91092.0,91073.0,0.010985]
[1767553687782,0.11701762,91091.0,91073.0,0.010985]
[1767553687980,0.10603462,91091.0,91073.0,0.010985]
[1767553688290,0.10603462,91091.0,91076.0,0.010984]
[1767553688875,0.09510127,91091.0,91078.0,0.010984]
[1767553689077,0.11537201,91095.0,91079.0,0.10786942]
[1767553689078,0.0934,91095.0,91079.0,0.10786942]
[1767553689383,0.0934,91128.0,91100.0,0.01120724]
[1767553689584,0.0934,91128.0,91110.0,0.10786942]
[1767553689881,0.0934,91128.0,91111.0,0.10786942]
[1767553690075,0.0934,91128.0,91118.0,0.010979]
[1767553690383,0.0934,91133.0,91124.0,0.010978]
[1767553690586,0.00219446,91139.0,91117.0,0.10786942]
[1767553690587,0.0934,91137.0,91126.0,0.010978]
[1767553691483,0.00219446,91139.0,91126.0,0.010978]
[1767553691683,0.09336,91138.0,91126.0,0.010978]
[1767553692180,0.09336,91138.0,91128.0,0.010978]
[1767553692985,0.09336,91138.0,91125.0,0.010978]
[1767553693580,0.09336,91138.0,91121.0,0.09666218]
[1767553693984,0.09336,91138.0,91125.0,0.010978]
[1767553694492,0.09336,91138.0,91122.0,0.010979]
[1767553695786,0.10657107,91122.0,91096.0,0.10786942]
[1767553695986,0.010978,91131.0,91071.0,0.384505]
[1767553695987,0.01098,91115.0,91097.0,0.09336]
[1767553696288,0.010978,91125.0,91098.0,0.09336]
[1767553696289,0.10657107,91116.0,91098.0,0.09336]
[1767553696484,0.01098,91112.0,91098.0,0.09336]
[1767553696885,0.10657107,91116.0,91098.0,0.09336]
[1767553697188,0.11755107,91116.0,91098.0,0.104342]
[1767553697384,0.10657107,91116.0,91098.0,0.104342]
[1767553697780,0.10657107,91116.0,91095.0,0.010982]
[1767553698085,0.010977,91135.0,91090.0,0.09336]
[1767553698086,0.10657107,91109.0,91090.0,0.09336]
[1767553698292,0.010981,91102.0,91088.0,0.09336]
[1767553698590,0.010981,91105.0,91086.0,0.104343]
[1767553698984,0.10657107,91109.0,91090.0,0.010983]
[1767553699184,0.10657107,91104.0,91080.0,0.01120724]
[1767553699386,0.10657107,91104.0,91081.0,0.09336]
[1767553699579,0.10657107,91104.0,91081.0,0.19002218]
[1767553700482,0.09510127,91095.0,91074.0,0.09666218]
[1767553700685,0.010982,91093.0,91073.0,0.010985]
[1767553700893,0.10657107,91092.0,91067.0,0.09666218]
[1767553701085,0.010983,91087.0,91068.0,0.104345]
[1767553701592,0.010983,91090.0,91070.0,0.010985]
[1767553702092,0.010983,91090.0,91071.0,0.09336]
[1767553702293,0.010983,91087.0,91071.0,0.09336]
[1767553704296,0.010983,91087.0,91079.0,0.00219591]
[1767553704596,0.010983,91090.0,91079.0,0.00219591]
[1767553704982,0.010983,91088.0,91079.0,0.00219591]
[1767553706495,0.010983,91086.0,91079.0,0.00219591]
[1767553706696,0.09336,91093.0,91069.0,0.09336]
[1767553706697,0.010983,91084.0,91069.0,0.09336]
[1767553707085,0.10657107,91084.0,91061.0,0.09666218]
[1767553707389,0.010984,91081.0,91067.0,0.09336]
[1767553708096,0.010983,91086.0,91067.0,0.09336]
[1767553708399,0.010984,91082.0,91067.0,0.09336]
[1767553709395,0.010984,91082.0,91066.0,0.10786942]
[1767553709588,0.010984,91082.0,91066.0,0.11786942]
[1767553710295,0.09991339,91086.0,91066.0,0.10666218]
[1767553710495,0.010984,91080.0,91065.0,0.09336]
[1767553710992,0.11314704,91084.0,91065.0,0.09336]
[1767553711192,0.010984,91076.0,91062.0,0.01248933]
[1767553711389,0.010984,91076.0,91063.0,0.10436947]
[1767553712799,0.11314704,91084.0,91058.0,0.01248933]
[1767553712800,0.010985,91072.0,91058.0,0.01248933]
[1767553713000,0.010985,91072.0,91054.0,0.10286714]
[1767553713001,0.01323365,91075.0,91055.0,0.09336]
[1767553713203,0.01323365,91072.0,91055.0,0.02]
[1767553713501,0.010986,91066.0,91055.0,0.02]
[1767553713703,0.010986,91064.0,91055.0,0.02]
[1767553714395,0.01323365,91072.0,91055.0,0.02]
[1767553714595,0.010985,91069.0,91053.0,0.010987]
[1767553714796,0.09991339,91073.0,91053.0,0.030987]
[1767553714996,0.010985,91070.0,91053.0,0.030987]
[1767553715296,0.010985,91070.0,91053.0,0.13417543]
[1767553715803,0.010985,91068.0,91053.0,0.13417543]
[1767553716006,0.010985,91068.0,91053.0,0.12318843]
[1767553716198,0.01245895,91076.0,91053.0,0.12318843]
[1767553716405,0.010986,91062.0,91053.0,0.02]
[1767553716706,0.010986,91062.0,91049.0,0.09555663]
[1767553716707,0.010986,91062.0,91049.0,0.00219663]
[1767553716906,0.010986,91062.0,91049.0,0.12555663]
[1767553717204,0.010986,91065.0,91049.0,0.12555663]
[1767553717605,0.010986,91065.0,91050.0,0.010987]
[1767553717805,0.010986,91065.0,91050.0,0.040987]
[1767553718609,0.010986,91063.0,91050.0,0.03]
[1767553719407,0.1016206,91043.0,91021.0,0.00010642]
[1767553719599,0.09529503,91037.0,91021.0,0.03010642]
[1767553719797,0.09336,91038.0,91028.0,0.10318843]
[1767553720104,0.09336,91038.0,91031.0,0.10218843]
[1767553720309,0.08014538,91038.0,91031.0,0.10218843]
[1767553720507,0.10775398,91064.0,91032.0,0.09099292]
[1767553720710,0.010987,91054.0,91038.0,0.09099292]
[1767553720901,0.0934,91053.0,91038.0,0.09099292]
[1767553721203,0.010987,91054.0,91038.0,0.09099292]
[1767553721604,0.0934,91053.0,91038.0,0.09099292]
[1767553721802,0.0934,91053.0,91037.0,0.010989]
[1767553721803,0.010986,91060.0,91040.0,0.09099292]
[1767553722000,0.010987,91057.0,91040.0,0.09099292]
[1767553722209,0.0934,91059.0,91040.0,0.10318843]
[1767553722508,0.0934,91059.0,91021.0,0.01109742]
[1767553722509,0.09529503,91053.0,91021.0,0.01109742]
[1767553722708,0.14204132,91093.0,91021.0,0.01109742]
[1767553722709,0.010989,91038.0,91021.0,0.00010642]
[1767553722897,0.010989,91038.0,91027.0,0.09099292]
[1767553723097,0.0934,91037.0,91027.0,0.09099292]
[1767553723297,0.0934,91036.0,91027.0,0.09099292]
[1767553723703,0.010989,91040.0,91027.0,0.09099292]
[1767553723913,0.0934,91044.0,91033.0,0.09099292]
[1767553724107,0.09529503,91056.0,91034.0,0.01219551]
[1767553724409,0.010988,91046.0,91034.0,0.01219551]
[1767553724609,0.0934,91045.0,91028.0,0.01219551]
[1767553724810,0.010989,91039.0,91026.0,0.09099292]
[1767553725313,0.010989,91037.0,91023.0,0.01219551]
[1767553725609,0.01245895,91039.0,91021.0,0.00010642]
[1767553725812,0.01245895,91039.0,91019.0,0.00219736]
[1767553725813,0.09529503,91031.0,91003.0,0.01219551]
[1767553726017,0.0934,91036.0,91024.0,0.01219551]
[1767553726314,0.0934,91037.0,91029.0,0.01219551]
[1767553726910,9.183e-05,91036.0,91028.0,0.09099292]
[1767553727310,9.183e-05,91036.0,91024.0,0.01219551]
[1767553727504,9.183e-05,91036.0,91024.0,0.4]
[1767553727812,0.010989,91035.0,91024.0,0.4]
[1767553728013,9.183e-05,91036.0,91024.0,0.4]
[1767553728213,9.183e-05,91036.0,91022.0,0.09099292]
[1767553728410,0.09529503,91035.0,91000.0,0.01219551]
[1767553728616,0.01099,91031.0,91007.0,0.01219551]
[1767553728908,0.01099,91031.0,91013.0,0.010992]
[1767553729115,0.01099,91031.0,91013.0,0.040992]
[1767553729318,0.01099,91029.0,91013.0,0.040992]
[1767553729513,0.01099,91027.0,91013.0,0.03]
[1767553729707,0.010991,91022.0,91013.0,0.03]
[1767553729908,0.010992,91015.0,91002.0,0.01219551]
[1767553730210,0.010992,91015.0,91002.0,0.04219551]
[1767553730517,7.773e-05,91021.0,90996.0,0.01219551]
[1767553730708,0.09529503,91004.0,90989.0,0.00219808]
[1767553730905,9.882e-05,91003.0,90993.0,0.010994]
[1767553731106,9.882e-05,91003.0,90993.0,0.01]
[1767553731312,9.882e-05,91003.0,90998.0,0.00150967]
[1767553731822,9.882e-05,91003.0,91000.0,0.00223565]
[1767553732112,9.882e-05,91003.0,90989.0,0.00219808]
[1767553732318,0.010993,91002.0,90989.0,0.03219808]
[1767553732507,0.010994,91000.0,90989.0,0.03219808]
[1767553732708,9.882e-05,91003.0,90972.0,0.03746276]
[1767553732709,0.09529503,90999.0,90972.0,0.03746276]
[1767553732915,0.09529503,90999.0,90940.0,0.01219551]
[1767553732916,0.09529503,90984.0,90940.0,0.01219551]
[1767553733124,0.010998,90966.0,90948.0,0.10318843]
[1767553733322,0.09529503,90970.0,90948.0,0.01]
[1767553733521,0.09529503,90952.0,90929.0,5.3e-07]
[1767553733715,0.011,90946.0,90892.0,0.01219551]
[1767553733908,0.37372,90956.0,90892.0,0.01219551]
[1767553733909,0.09529503,90922.0,90892.0,0.01219551]
[1767553734221,0.09529503,90922.0,90898.0,0.09099292]
[1767553734422,0.09529503,90922.0,90900.0,2.72]
[1767553734609,0.00012505,90921.0,90905.0,0.10318843]
[1767553734809,0.011002,90931.0,90906.0,0.01219551]
[1767553735006,0.011001,90937.0,90908.0,0.01219551]
[1767553735309,0.09529503,90959.0,90919.0,0.05319833]
[1767553735509,0.01245895,90991.0,90951.0,0.09099292]
[1767553735709,0.01245895,90991.0,90953.0,0.09099292]
[1767553735710,0.00010349,90990.0,90953.0,0.09099292]
[1767553736020,0.010995,90984.0,90958.0,0.09099292]
[1767553736207,0.00010349,90990.0,90959.0,0.09099292]
[1767553736414,0.01245895,90988.0,90956.0,0.09344]
[1767553736615,0.09344,90989.0,90962.0,0.09099292]
[1767553736821,0.010995,90984.0,90962.0,0.12099292]
[1767553737021,0.010996,90980.0,90963.0,0.09344]
[1767553737318,0.010996,90980.0,90962.0,0.09099292]